Cogmind - Beta 16.1 @@@ ROGUE MODE // 2026.02.14 @ 23:55:00 Player: BatSpy Result: Destroyed by as-98340 with Assembled Rifle Performance ------------- Evolutions (0) 0 Regions Visited (2) 400 Robots Destroyed (7) 35 Value Destroyed (186) 186 Prototype IDs (0) 0 Alien Tech Used (0) 0 Bonus (0) 0 TOTAL SCORE: 621 Bonus ------- None Cogmind --------- Core Integrity 0/250 Matter 277/300 Energy 47/100 System Corruption 6% Temperature Cool (57) Movement Core (50) Location -10/Mines Parts ------- > --- POWER (1) -------- (None) > --- PROPULSION (2) --- (None) > --- UTILITY (2) ------ (None) > --- WEAPON (2) ------- (None) > --- INVENTORY (5) ---- Light Ion Engine Structural Scanner Peak State ------------ > --- POWER ------------ Light Ion Engine > --- PROPULSION ------- Aluminum Leg Aluminum Leg > --- UTILITY ---------- Sensor Array Signal Interpreter > --- WEAPON ----------- EM Shotgun EM Shotgun > --- INVENTORY -------- Light Ion Engine Tractor Beam Medium Laser Assault Rifle Mining Laser [Rating: 9] Favorites ----------- Power Light Ion Engine Engine Light Ion Engine Propulsion Aluminum Leg Leg Aluminum Leg Utility Signal Interpreter Device Sensor Array Processor Signal Interpreter Weapon EM Shotgun Energy Gun EM Shotgun Ballistic Gun Assault Rifle Special Weapon Mining Laser Build | -11 -10 -10 ------- Run | Yrd Mat Min Slots Evolved . | . . . Power . | . . . Propulsion . | . . . Utility . | . . . Weapon . | . . . Parts Attached 14 | 5 7 2 Power 2 | 1 1 . Engine 2 | 1 1 . Core . | . . . Reactor . | . . . Propulsion 2 | 2 . . Treads . | . . . Leg 2 | 2 . . Wheel . | . . . Hover . | . . . Flight . | . . . Utility 2 | . 2 . Device 1 | . 1 . Storage . | . . . Processor 1 | . 1 . Hackware . | . . . Protection . | . . . Artifact . | . . . Weapon 8 | 2 4 2 Energy Gun 5 | 1 3 1 Energy Cannon . | . . . Ballistic Gun 1 | 1 . . Ballistic Cannon . | . . . Launcher . | . . . Special Weapon 2 | . 1 1 Impact Weapon . | . . . Slashing Weapon . | . . . Piercing Weapon . | . . . Special Melee Weapon . | . . . Unidentified Prototypes . | . . . Parts Lost 11 | . 1 10 Power 1 | . . 1 Propulsion 2 | . . 2 Utility 2 | . . 2 Weapon 6 | . 1 5 Highest Loss Streak 10 | . 1 10 To Critical Strikes . | . . . Average Backups 4 | 2 4 4 Power 1 | 1 1 1 Propulsion . | . . . Utility . | . 1 1 Weapon 2 | 1 2 2 Tool/Special . | . . . Unused Backups 4 | . 2 2 Power 1 | . . 1 Propulsion . | . . . Utility 2 | . 1 1 Weapon 1 | . 1 . Tool/Special . | . . . Average Slot Usage (%) 87 | . 89 82 Engine 12 | . 14 8 Leg 27 | . 28 24 Device 10 | . 9 12 Processor 10 | . 9 14 Energy Gun 17 | . 16 19 Ballistic Gun 6 | . 8 . Special Weapon 2 | . 2 1 Peak Build Rating 9 | 5 9 9 Average Rating 6 | 4 7 6 On Entrance 4 | . 5 9 Avg Prop Armor Cover (%) . | . . . Naked Turns 1 | . . 1 Heaviest Build 10 | 7 10 10 Greatest Support 20 | 20 20 20 Greatest Overweight (x) . | . . . Average Overweight (x) . | . . . Largest Inventory Capacity 5 | 5 5 5 Average Capacity 5 | 5 5 5 Most Carried 5 | 5 5 5 Average Carried 4 | 2 4 4 Final Capacity 5 | 5 5 5 Final Carried 5 | 4 5 2 Class Distribution -------------------- 100% | Mutant Dominant Class ---------------- Mutant | -10/Materials Mutant | -10/Mines Resources | -11 -10 -10 ----------- Run | Yrd Mat Min Matter Collected 339 | 163 166 10 Remotely . | . . . Salvage Created 287 | 66 211 10 Parts 17 | 5 12 . Haulers Intercepted . | . . . Recyclers Shooed . | . . . Parts Field Recycled . | . . . Retrieved Matter . | . . . Parts Self-Destructed . | . . . Prevented . | . . . Parts Restored . | . . . Kills | -11 -10 -10 ------- Run | Yrd Mat Min Combat Hostiles Destroyed 5 | . 4 1 Melee 1 | . . 1 Guns 4 | . 4 . Classes Destroyed 5 | 2 2 1 Worker 1 | . 1 . Tunneler 1 | 1 . . Recycler 1 | 1 . . Grunt 4 | . 4 . Assembled 1 | . . 1 Best Kill Streak 3 | 1 3 1 Combat Bots Only 2 | . 2 1 Max Kills in Single Turn 1 | 1 1 1 Gunslinging . | . . . Exploded . | . . . Melee 1 | . . 1 Uniques/NPCs Destroyed . | . . . Combat | -11 -10 -10 -------- Run | Yrd Mat Min Hostile Shots Fired 79 | . 24 55 Missed 21 | . 8 13 Hits 58 | . 16 42 Melee 8 | . . 8 Projectile 50 | . 16 34 Part Disruptions 3 | . . 3 Damage Taken 855 | . 222 633 Core 251 | . 26 225 Absorbed by Shields . | . . . Core Remaining (%) 100 | 100 . . Volleys Fired 30 | 11 17 2 Largest 2 | 2 2 1 Hottest 100 | 70 100 100 Shots Fired 52 | 22 28 2 Gun 46 | 22 24 . Cannon . | . . . Launcher . | . . . Special 6 | . 4 2 Kinetic 19 | 11 8 . Thermal 25 | 11 12 2 Explosive . | . . . Electromagnetic 8 | . 8 . Robot Hit Streak 11 | 3 11 . Robot Miss Streak 6 | 6 3 . Penetration Max . | . . . Secondary Targets 1 | . 1 . Max Gunslinging Chain 1 | . 1 . Shots Hit Robots 29 | 8 21 . Core Hits 16 | 3 11 2 Critical Kills . | . . . Critical Parts Destroyed . | . . . Critical Strikes 2 | . 2 . Burn 2 | . 2 . Melee Attacks . | . . . Impact . | . . . Slashing . | . . . Piercing . | . . . Sneak Attacks . | . . . Combat Hostiles . | . . . Follow-up Attacks . | . . . Damage Inflicted 417 | 100 308 9 Guns 408 | 100 308 . Cannons . | . . . Explosions . | . . . Melee . | . . . Ramming 9 | . . 9 Kinetic 151 | 50 101 . Thermal 124 | 50 74 . Explosive . | . . . Electromagnetic 133 | . 133 . Impact . | . . . Slashing . | . . . Piercing . | . . . Highest Corruption 6 | . . 6 Average Corruption 4 | . . 4 Corruption Purged . | . . . Corruption Blocked . | . . . Effects 2 | . . 2 Heat Flow Errors 1 | . . 1 Data Loss (major) 1 | . . 1 Overload Shots . | . . . Overflow Damage . | . . . Projectiles . | . . . Explosions . | . . . Melee . | . . . Knockbacks . | . . . Impact . | . . . Kinetic . | . . . Secondary . | . . . Self-Inflicted Damage . | . . . Shots . | . . . Rammed . | . . . Targets Rammed 4 | . . 4 Kicked 4 | . . 4 Crushed . | . . . Highest Temperature 251 | 90 143 251 Average Temperature 70 | 42 62 150 Received Heat Transfer 329 | . 129 200 Siege Activations . | . . . Martial Activations . | . . . Shielding Activations . | . . . Robots Disrupted . | . . . Combat Hostiles . | . . . Robots Corrupted . | . . . Combat Hostiles . | . . . Parts Fried . | . . . Impact Corruptions . | . . . Robots Melted . | . . . Combat Hostiles . | . . . Parts Melted 1 | . 1 . Heat Transferred 518 | 148 370 . Parts Sabotaged . | . . . Parts Stolen . | . . . Parts Stripped . | . . . Power Chain Reactions . | . . . Alert | -11 -10 -10 ------- Run | Yrd Mat Min Maximum Alert Level . | . . . Low Security (%) 100 | 100 100 100 Level 1 . | . . . Level 2 . | . . . Level 3 . | . . . Level 4 . | . . . Level 5 . | . . . High Security . | . . . Max Security . | . . . Peak Influence 60 | 5 60 7 Initial 7 | . . 7 Average 14 | . 21 2 Influence Increases 131 | 10 120 1 Destroy 0b10 Robot/C 80 | . 80 . Destroy 0b10 Robot/NC 15 | 10 5 . Destroy Leader 20 | . 20 . Disable Machine 15 | . 15 . Destroy Structure 1 | . . 1 Influence Decreases 131 | 10 100 21 Entered New Map 13 | . . 13 Time Decay 107 | 10 90 7 Lost Part 11 | . 10 1 Squads Dispatched . | . . . Investigation . | . . . Extermination . | . . . Reinforcement . | . . . Assault . | . . . Garrison . | . . . Intercept . | . . . Searches Triggered . | . . . Construction Impeded . | . . . Haulers Reinforced . | . . . Active Scanning Responses . | . . . Cargo Convoy Interrupts . | . . . Stealth | -11 -10 -10 --------- Run | Yrd Mat Min Distress Signals 1 | . 1 . Communications Jammed . | . . . Distress Signals . | . . . Times Spotted 32 | . 5 27 Peak Tracking Total 19 | . 3 19 Tactical Retreats 2 | . . 2 Traps | -11 -10 -10 ------- Run | Yrd Mat Min Traps Triggered . | . . . Indirectly . | . . . Trap Hack Attempts . | . . . Triggered . | . . . Disarmed . | . . . Reprogrammed . | . . . Reused . | . . . Traps Extracted . | . . . Installed . | . . . Triggered . | . . . Machines | -11 -10 -10 ---------- Run | Yrd Mat Min Machines Disabled 1 | . 1 . Max in Single Turn 1 | . 1 . Machines Repaired . | . . . Machines Dismantled . | . . . Machines Sabotaged . | . . . Overloaded Fab Kills . | . . . Hacking | -11 -10 -10 --------- Run | Yrd Mat Min Machines Accessed . | . . . Terminals . | . . . Fabricators . | . . . Repair Stations . | . . . Recycling Units . | . . . Scanalyzers . | . . . Garrison Access . | . . . Total Hacks . | . . . Successful . | . . . Failed . | . . . Catastrophic . | . . . Database Lockouts . | . . . Manual . | . . . Terminals . | . . . Fabricators . | . . . Repair Stations . | . . . Recycling Units . | . . . Scanalyzers . | . . . Garrison Access . | . . . Terminal Hacks . | . . . Fabricator Hacks . | . . . Repair Station Hacks . | . . . Recycling Unit Hacks . | . . . Scanalyzer . | . . . Garrison Access Hacks . | . . . Unauthorized Hacks . | . . . Terminals . | . . . Fabricators . | . . . Repair Stations . | . . . Recycling Units . | . . . Scanalyzers . | . . . Garrison Access . | . . . Data Cores Recovered . | . . . Used . | . . . Hacking Detections . | . . . Full Trace Events . | . . . Feedback Events . | . . . Feedback Blocked . | . . . Robot Schematics Acquired . | . . . Robots Built . | . . . Authchips . | . . . Time . | . . . Total Robot Build Rating . | . . . Part Schematics Acquired . | . . . Parts Built . | . . . Authchips . | . . . Time . | . . . Total Part Build Rating . | . . . Part Studies Acquired . | . . . Parts Repaired . | . . . Time . | . . . Parts Recycled . | . . . Recycled Matter . | . . . Retrieved Matter . | . . . Retrieved Components . | . . . Parts Scanalyzed . | . . . Part Schematics Acquired . | . . . Parts Damaged . | . . . Bothacking | -11 -10 -10 ------------ Run | Yrd Mat Min Used RIF Installer . | . . . Robots Hacked . | . . . Non-combat . | . . . Combat . | . . . Robot Hacks Applied . | . . . Relay Couplers Released . | . . . Fabnet Peak Effective % . | . . . Robots Rewired . | . . . Allies Hacked . | . . . Hacks Repelled . | . . . Allies | -11 -10 -10 -------- Run | Yrd Mat Min Total Allies . | . . . Largest Group . | . . . Highest-Rated Group . | . . . Highest-Rated Ally . | . . . Total Orders . | . . . Ally Attacks . | . . . Total Damage . | . . . Kills . | . . . Allies Corrupted . | . . . Allies Melted . | . . . Intel | -11 -10 -10 ------- Run | Yrd Mat Min Active Infowar (turns) 239 | . 179 60 Sensors 239 | . 179 60 Robot Analysis Total . | . . . Derelict Logs Recovered . | . . . Drone Launches . | . . . Drone Recoveries . | . . . Exploration | -11 -10 -10 ------------- Run | Yrd Mat Min Turns Passed 404 | 76 258 70 Spaces Moved 226 | 33 154 39 Core 14 | 13 . 1 Treads . | . . . Legs 212 | 20 154 38 Wheels . | . . . Hover . | . . . Flight . | . . . Fastest Speed 50 | 50 120 50 Average Speed 115 | 92 120 118 Slowest Speed 120 | 120 120 120 Overloaded Moves . | . . . Propulsion Burnouts . | . . . Robots Hopped . | . . . Potential Cave-ins . | . . . Cave-ins Triggered . | . . . Exploration Rate (%) 14 | 5 30 8 Regions Visited 2 Branch Regions 1 Pre-discovered Areas . | . . . Known Exits Taken 1 | . 1 . Unknown Exits Taken 1 | 1 . . Scrap Searched . | . . . Spaces Dug 2 | . . 2 Terrain Destroyed 2 | . . 2 Melee . | . . . Projectile 2 | . . 2 AOE . | . . . Terrain Rammed . | . . . Walls Destroyed . | . . . Machines Disabled . | . . . Actions | -11 -10 -10 --------- Run | Yrd Mat Min Total 301 | 55 190 56 Wait 8 | . . 8 Move 224 | 32 153 39 Hop . | . . . Pick Up 13 | 7 6 . Fast Attach 4 | 2 2 . Attach 7 | 3 1 3 Detach . | . . . Swap 6 | . 6 . Drop 5 | . 5 . Fire 30 | 11 17 2 Melee . | . . . Ram . | . . . Kick 4 | . . 4 Crush . | . . . Escape Stasis . | . . . Rewire . | . . . Trap . | . . . Miscellaneous . | . . . Route ------- -11/Scrapyard -10/Materials -10/Mines History --------- Turn | Location | Event 11 | -11/Scrapyard | Discovered new exit (range 15) 77 | -11/Scrapyard | Entered Materials 316 | -10/Materials | Discovered new exit (range 8) 318 | -10/Materials | Build established: Mutant 334 | -10/Materials | Identified exit to Mines 335 | -10/Materials | Entered Mines 336 | -10/Mines | Assembled infested the area 341 | -10/Mines | Assisted by a Guerilla fighting off Assembled 388 | -10/Mines | Core integrity fell below 50% 402 | -10/Mines | Core integrity fell below 20% 405 | -10/Mines | Destroyed by as-98340 with Assembled Rifle Last Messages --------------- 00367_ Knocked back. 00370_ EM Shotgun destroyed. 00370_ System corrupted by crushing effect (+3). 00373_ System corrupted: Substantial component data lost. 00374_ Kicked as-91861. 00376_ as-91861 destroyed. 00377_ Acquired 10 matter. 00378_ Lgt. Ion Engine destroyed. 00379_ EM Shotgun destroyed. 00379_ System corrupted by crushing effect (+2). 00383_ Kicked as-98340. 00388_ System corrupted: Heat flow error (+211). 00393_ Mining Laser destroyed. 00394_ Aluminum Leg destroyed. 00395_ Sensor Array destroyed. 00397_ Mining Laser destroyed. 00403_ Signal Interpreter destroyed. 00403_ System corrupted by crushing effect (+1). 00404_ EM Shotgun destroyed. Map ----- +----------------------------------------------------+ | ???????????????????????????????????????????????? | | ???????????????????????????????????????????????? | | ???????????????????????????????????????????????? | | ???????????????????????????????????????????????? | | ???????????????????????????????????????????????? | | ???????????????????????????????????????????????? | | ???????????????????????????????????????????????? | | ???????????????????????????????????????????????? | | ???????????????????????????????????????????????? | | ???????????????????????????????????????????????? | | ???????????????????????????????????????????????? | | ???????????????????????????????????????????????? | | ???????????????????????????????????????????????? | | ???????????????????????????????????????????????? | | ???????????????????????????????????????????????? | | ???????????????????????????????????????????????? | | ???????????????????????????????????????????????? | | ???????????????????????????????????????????????? | | ???????????????????????????????????????????????? | | ????????????????????? ?????????????????????????? | | ????????????????????? ?????????????????????????? | | ????????????????????? ?????????????????????????? | | ????????????????????# ?????????????????????????? | | ???????????????????? ?????????????????????????? | | ???????????????????? ####??????????????????????? | | ???????????????????# ##@#??????????????????????? | | ???????????????????# #aa######?????????????????? | | ??????????????????## aaaa #?????????????????? | | ?????????????######; ;###### #?????????????????? | | ?????????????# %a #???# #?????????????????? | | ?????????????# #???# #?????????????????? | | ?????????????# a% #???# #?????????????????? | | ?????????????# % ##### ####??????????????? | | ?????????????####### ### %* #??????????????? | | ???????????????????# #?# = #??????????????? | | ???????????????????# #?# =%! #??????????????? | | ???????????????????# ### % = #??????????????? | | ???????????????????# #??????????????? | | ???????????????????#####""" #??????????????? | | ???????????????????????#""" #??????????????? | | ???????????????????????#""" #??????????????? | | ???????????????????????# #??????????????? | | ???????????????????????##########??????????????? | | ???????????????????????????????????????????????? | | | | | | | | | | | | | +----------------------------------------------------+ Best States ------------- Heat Dissipation 25 Energy Generation 10 Energy Capacity 125 Matter Stores 267 Matter Capacity 300 Sight Range 16 Robot Scan Range 14 Terrain Scan Density 10 Evasion (%) 55 Item Schematics ----------------- None Robot Schematics ------------------ None Fabricated ------------ Nothing Repaired ---------- Nothing Studied --------- None Alien Tech Used ----------------- None Achievements -------------- None Challenges ------------ None Game ------ Seed DisruptorEfficiencyFlamer Manual? 0 Play Time 00:07:06 Cumulative 48.8 hours Start 2026.02.14 @ 23:48:57 End 2026.02.14 @ 23:55:00 Sessions 1 Manual Loads 0 Difficulty Rogue Special Mode None Game No. 89 Rogue 89 Adventurer 0 Explorer 0 Win Type - Total 0 Types 0/0/0/0/0/0/0/0/0/0 Lore% 20 Gallery% 39 Achievement% 23 Wizard Run 0 Options --------- Layout 1 ASCII 0 Keyboard 0 Movement Mouse Keybinds 0 Fullscreen 1 Font 32/SmallcapsGlow Map View 50x35 Zoom Use 0% Tactical HUD 1 Map Filters NONE Filters NONE Steam 1 RUN: feededbd-724a-4532-b14c-8bab82af82de